bitfinex-derivatives/quotes_BTCF0:USTF0_20241221
["timestamp","ask_amount","ask_price","bid_price","bid_amount"]
[1734777457064,0.005,98175.0,98174.0,0.050942]
[1734777457863,0.003,98175.0,98174.0,0.050942]
[1734777458264,0.001,98175.0,98174.0,0.050942]
[1734777458468,0.004,98175.0,98174.0,0.050942]
[1734777458858,0.002,98175.0,98174.0,0.050942]
[1734777459056,0.002,98175.0,98174.0,0.051942]
[1734777459264,0.002,98175.0,98174.0,0.001]
[1734777459457,0.002,98175.0,98174.0,0.002]
[1734777459660,0.03,98179.0,98174.0,0.001]
[1734777459957,0.050942,98175.0,98174.0,0.001]
[1734777460157,0.06099523,98175.0,98174.0,0.001]
[1734777460365,0.050943,98173.0,98168.0,0.18266855]
[1734777460566,0.3608,98172.0,98168.0,0.18266855]
[1734777460769,0.3608,98172.0,98160.0,0.050949]
[1734777460968,0.3608,98172.0,98161.0,0.050949]
[1734777461163,0.3608,98172.0,98160.0,0.09962319]
[1734777461366,0.3608,98172.0,98167.0,0.050946]
[1734777462166,0.3678,98172.0,98167.0,0.050946]
[1734777462471,0.007,98172.0,98167.0,0.411746]
[1734777462967,0.011,98172.0,98167.0,0.411746]
[1734777463359,0.011,98172.0,98167.0,0.050946]
[1734777463559,0.007,98172.0,98167.0,0.050946]
[1734777463863,0.012,98172.0,98167.0,0.050946]
[1734777464272,0.004,98172.0,98167.0,0.050946]
[1734777464467,0.01,98172.0,98167.0,0.050946]
[1734777464767,0.004,98172.0,98167.0,0.050946]
[1734777464965,0.01,98172.0,98167.0,0.050946]
[1734777465168,0.059944,98172.0,98159.0,0.18266855]
[1734777465364,0.053944,98172.0,98159.0,0.23361855]
[1734777465671,0.059944,98172.0,98160.0,0.050949]
[1734777465861,0.01033093,98171.0,98160.0,0.050949]
[1734777466169,0.059944,98172.0,98160.0,0.050949]
[1734777466366,0.01033095,98171.0,98160.0,0.050949]
[1734777466566,0.09057252,98171.0,98161.0,1.36]
[1734777466871,0.3608,98169.0,98161.0,1.36]
[1734777468268,0.050947,98164.0,98161.0,1.36]
[1734777468669,0.36632001,98169.0,98161.0,1.36]
[1734777468972,0.3678,98169.0,98161.0,1.36]
[1734777469374,0.007,98169.0,98168.0,0.411745]
[1734777470061,0.007,98169.0,98168.0,0.427025]
[1734777470279,0.007,98169.0,98168.0,1.787025]
[1734777471072,0.001,98169.0,98168.0,1.788025]
[1734777471273,0.003,98169.0,98168.0,1.788025]
[1734777471973,0.001,98169.0,98168.0,1.788025]
[1734777472275,9.467e-05,98181.0,98176.0,0.050941]
[1734777472774,9.467e-05,98181.0,98178.0,0.05094]
[1734777473568,0.00103814,98180.0,98178.0,0.05094]
[1734777474673,0.00103814,98179.0,98178.0,0.05394]
[1734777475071,0.00103814,98179.0,98178.0,0.05094]
[1734777475278,0.00103814,98179.0,98178.0,0.05394]
[1734777475668,0.00103814,98179.0,98178.0,0.05494]
[1734777476276,0.00103814,98179.0,98178.0,0.004]
[1734777476777,0.32806868,98179.0,98167.0,0.14393666]
[1734777476972,0.050949,98160.0,98159.0,0.28870363]
[1734777477274,0.43877954,98160.0,98138.0,0.42253261]
[1734777477466,0.05095,98158.0,98138.0,0.42253261]
[1734777477667,0.0624245,98158.0,98138.0,0.42253261]
[1734777478772,0.12472921,98158.0,98133.0,0.0638]
[1734777479279,0.11479959,98158.0,98133.0,0.0638]
[1734777479677,0.11487483,98158.0,98133.0,0.0638]
[1734777480081,0.14947483,98158.0,98133.0,0.0638]
[1734777480377,0.01462498,98158.0,98140.0,0.09962319]
[1734777480578,0.3608,98150.0,98136.0,0.050962]
[1734777480775,4e-05,98141.0,98136.0,0.050962]
[1734777480982,4e-05,98137.0,98136.0,0.050962]
[1734777481674,0.0013791,98137.0,98136.0,0.050962]
[1734777482078,0.0033791,98137.0,98136.0,0.050962]
[1734777483379,0.0073791,98137.0,98136.0,1.410962]
[1734777485073,0.0073791,98137.0,98136.0,1.753282]
[1734777488878,0.0073791,98137.0,98136.0,1.76361983]
[1734777489282,0.0073791,98137.0,98136.0,1.71265783]
[1734777490087,0.0073791,98137.0,98136.0,1.72797783]
[1734777491491,0.0073791,98137.0,98136.0,1.77893983]
[1734777494287,0.0073791,98137.0,98136.0,2.13973983]
[1734777497186,0.09055972,98152.0,98151.0,0.050954]
[1734777497488,0.15146189,98164.0,98162.0,0.050948]
[1734777497689,0.15146189,98164.0,98162.0,0.411748]
[1734777497882,0.18201973,98171.0,98167.0,0.050946]
[1734777498084,0.21200513,98184.0,98164.0,0.0675]
[1734777498287,0.21200513,98184.0,98177.0,0.411741]
[1734777498491,0.050938,98182.0,98177.0,0.3608]
[1734777499194,0.050939,98181.0,98177.0,0.3608]
[1734777499385,0.05094,98179.0,98170.0,0.050944]
[1734777499696,0.01004085,98186.0,98170.0,0.050944]
[1734777499697,0.411741,98177.0,98170.0,0.050944]
[1734777501392,0.412741,98177.0,98170.0,0.050944]
[1734777501595,0.414741,98177.0,98170.0,0.050944]
[1734777502090,0.3638,98177.0,98163.0,1.76630971]
[1734777502298,0.050945,98170.0,98163.0,1.76518971]
[1734777502595,4e-05,98164.0,98163.0,0.40518971]
[1734777503092,4e-05,98164.0,98163.0,0.3948]
[1734777503293,4e-05,98164.0,98163.0,0.01417183]
[1734777503492,0.36084,98164.0,98163.0,0.01417183]
[1734777504086,0.36084,98164.0,98163.0,0.01617183]
[1734777504699,0.36084,98164.0,98163.0,0.01917183]
[1734777505891,0.36084,98164.0,98163.0,0.01517183]
[1734777506295,0.40536516,98164.0,98163.0,0.01517183]
[1734777506899,0.37166516,98164.0,98163.0,0.01517183]
[1734777507290,0.37166898,98164.0,98163.0,0.01517183]
[1734777507496,0.37166898,98164.0,98163.0,0.01617183]
[1734777508203,0.37166898,98164.0,98163.0,0.002]
[1734777510791,0.37166898,98164.0,98163.0,0.001]
[1734777511102,0.05095,98159.0,98157.0,8e-05]
[1734777511294,0.01082898,98158.0,98157.0,8e-05]
[1734777511490,4e-05,98158.0,98157.0,8e-05]
[1734777511796,0.01093285,98158.0,98157.0,8e-05]
[1734777512002,0.04453285,98158.0,98157.0,8e-05]
[1734777512192,0.04453285,98158.0,98157.0,0.00208]
[1734777513001,0.04453285,98158.0,98157.0,0.00408]
[1734777514000,0.04453285,98158.0,98157.0,0.00208]
[1734777514199,0.04453285,98158.0,98157.0,0.00408]
[1734777514501,0.05182638,98177.0,98158.0,0.05095]
[1734777514693,0.05182638,98177.0,98157.0,0.00408]
[1734777514694,0.01086384,98175.0,98164.0,0.050947]
[1734777514895,0.01086384,98174.0,98165.0,0.031]
[1734777515095,0.01086384,98173.0,98167.0,0.050945]
[1734777515306,0.01086384,98173.0,98166.0,1.36]
[1734777515307,0.0345,98177.0,98166.0,1.36116]
[1734777515505,0.01085976,98175.0,98169.0,0.050944]
[1734777515702,0.01085976,98174.0,98169.0,0.050944]
[1734777516002,0.36832001,98176.0,98169.0,0.050944]
[1734777516208,0.01085979,98175.0,98169.0,0.050944]
[1734777516397,0.36632001,98176.0,98166.0,1.36116]
[1734777516598,0.01086016,98175.0,98166.0,1.36]
[1734777516801,0.36832001,98176.0,98173.0,0.050943]
[1734777516999,0.0108603,98175.0,98166.0,1.36112]
[1734777517208,0.36832001,98176.0,98166.0,1.36]
[1734777517391,4e-05,98167.0,98166.0,1.36]
[1734777517706,4e-05,98167.0,98166.0,1.410946]
[1734777520602,4e-05,98167.0,98166.0,0.050946]
[1734777521095,0.3608,98189.0,98177.0,0.050941]
[1734777521296,0.3608,98196.0,98177.0,0.050941]
[1734777521297,0.3608,98196.0,98177.0,0.411741]
[1734777521498,0.01066433,98195.0,98177.0,0.411741]
[1734777521708,0.3608,98196.0,98177.0,0.411741]
[1734777522409,0.00363972,98178.0,98177.0,1.771741]
[1734777522710,0.00863972,98178.0,98177.0,1.771741]
[1734777527219,0.00863972,98178.0,98177.0,1.78178162]
[1734777527411,0.3608,98196.0,98177.0,1.73084062]
[1734777527616,0.3608,98196.0,98186.0,0.46042319]
[1734777527822,0.3608,98196.0,98187.0,0.034]
[1734777528410,8.327e-05,98195.0,98187.0,0.034]
[1734777528815,8.327e-05,98195.0,98194.0,0.050932]
[1734777529810,0.00408327,98195.0,98194.0,0.066212]
[1734777530819,0.01308327,98195.0,98194.0,0.066212]
[1734777531326,0.00408327,98195.0,98194.0,0.066212]
[1734777531525,0.01308327,98195.0,98194.0,0.067212]
[1734777531725,0.01308327,98195.0,98194.0,0.428012]
[1734777532327,0.1487182,98220.0,98211.0,0.050923]
[1734777532531,0.1487182,98220.0,98210.0,0.09962319]
[1734777532721,0.1487182,98220.0,98216.0,0.05092]
[1734777532922,0.0105744,98230.0,98211.0,0.0341]
[1734777532923,0.0105744,98233.0,98219.0,0.3608]
[1734777533122,0.00658817,98234.0,98220.0,0.09962319]
[1734777533428,0.00010121,98230.0,98225.0,0.050915]
[1734777535020,0.00010121,98230.0,98228.0,0.3608]
[1734777535229,0.01110121,98230.0,98228.0,0.3608]
[1734777536935,0.01410121,98230.0,98228.0,0.3618]
[1734777538031,0.06501521,98230.0,98228.0,0.3618]
[1734777538231,0.36501521,98230.0,98218.0,8e-05]
[1734777538431,0.411719,98219.0,98218.0,8e-05]
[1734777539434,0.411719,98219.0,98218.0,0.00108]
[1734777540025,0.418719,98219.0,98218.0,0.00208]
[1734777540425,0.3678,98219.0,98218.0,0.00208]
[1734777541036,0.418719,98219.0,98218.0,0.00208]
[1734777541636,0.3708,98219.0,98218.0,0.00108]
[1734777542632,0.01,98219.0,98218.0,0.00108]
[1734777552834,0.01,98219.0,98218.0,1.36108]
[1734777553239,0.00010121,98230.0,98229.0,0.050914]
[1734777553538,0.00010121,98230.0,98229.0,0.411714]
[1734777554344,0.00510121,98230.0,98229.0,0.412714]
[1734777554543,0.01410121,98230.0,98229.0,0.413714]
[1734777555542,0.00010121,98230.0,98229.0,0.416714]
[1734777556252,0.00010121,98230.0,98229.0,0.055914]
[1734777557750,0.00010121,98230.0,98229.0,0.054914]
[1734777558346,0.05101421,98230.0,98229.0,0.005]
[1734777558547,0.36090121,98230.0,98218.0,0.24259026]
[1734777558747,0.36090121,98230.0,98217.0,0.0012]
[1734777558748,0.050918,98222.0,98217.0,0.0012]
[1734777559051,4e-05,98219.0,98217.0,8e-05]
[1734777560253,0.01034664,98218.0,98217.0,8e-05]
[1734777560439,0.06126564,98218.0,98217.0,8e-05]
[1734777560840,0.06126564,98218.0,98217.0,0.00608]
[1734777561040,0.06126564,98218.0,98217.0,0.00908]
[1734777561358,0.06126564,98218.0,98217.0,0.01008]
[1734777561359,0.06226564,98218.0,98217.0,0.01008]
[1734777561853,0.06226564,98218.0,98217.0,0.00708]
[1734777561854,0.13026564,98218.0,98217.0,0.00708]
[1734777562155,0.13026564,98218.0,98217.0,0.01008]
[1734777562848,0.14692183,98218.0,98217.0,0.01008]
[1734777564344,0.13026564,98218.0,98217.0,0.01008]
[1734777564742,0.13032328,98218.0,98217.0,0.01008]
[1734777567141,0.13028196,98218.0,98217.0,0.01008]
[1734777569253,0.2512476,98218.0,98217.0,0.01008]
[1734777569850,0.1666286,98218.0,98217.0,0.061]
[1734777570056,0.1323286,98218.0,98217.0,0.061]
[1734777570244,0.12196564,98218.0,98217.0,0.061]
[1734777571953,0.001,98218.0,98217.0,0.061]
[1734777575562,0.001,98218.0,98217.0,1.421]
[1734777576454,0.00010121,98230.0,98228.0,0.050914]
[1734777576656,0.00010121,98230.0,98229.0,0.3608]
[1734777577158,0.00137236,98230.0,98229.0,0.3608]
[1734777578060,0.00137236,98230.0,98229.0,0.3628]
[1734777578461,0.12096564,98246.0,98229.0,0.3628]
[1734777578662,0.12096564,98246.0,98245.0,0.411705]
[1734777580251,0.12096564,98262.0,98245.0,1.7208]
[1734777580451,0.12096564,98262.0,98255.0,0.3608]
[1734777581058,0.12096564,98262.0,98258.0,0.050899]
[1734777581556,0.0075272,98259.0,98258.0,0.050899]
[1734777581968,0.0115272,98259.0,98258.0,0.050899]
[1734777582656,0.0115272,98259.0,98258.0,0.051899]
[1734777582858,0.01,98259.0,98258.0,0.051899]
[1734777583862,0.006,98259.0,98258.0,0.051899]
[1734777584069,0.01,98259.0,98258.0,0.051899]
[1734777584958,0.01139439,98259.0,98258.0,0.051899]
[1734777590861,0.050912,98233.0,98230.0,0.00112]
[1734777591067,0.05230639,98233.0,98216.0,0.3608]
[1734777591271,0.050915,98226.0,98225.0,0.30460452]
[1734777591467,0.411715,98226.0,98225.0,0.30460452]
[1734777592069,0.41310939,98226.0,98225.0,0.30460452]
[1734777592664,0.36219439,98226.0,98217.0,0.05092]
[1734777592973,4e-05,98218.0,98217.0,0.05092]
[1734777593268,0.00143439,98218.0,98217.0,0.05092]
[1734777594268,0.05092,98217.0,98209.0,0.050924]
[1734777594465,0.05092,98217.0,98210.0,0.050923]
[1734777594780,0.05092,98217.0,98206.0,0.342]
[1734777595168,0.00139439,98212.0,98211.0,0.050923]
[1734777595873,0.00139439,98212.0,98206.0,0.342]
[1734777596068,0.00139439,98212.0,98208.0,0.050924]
[1734777596269,0.00139439,98210.0,98209.0,0.050924]
[1734777597366,0.00139439,98210.0,98209.0,1.410924]
[1734777598081,0.00239439,98210.0,98209.0,1.410924]
[1734777598273,0.00539439,98210.0,98209.0,1.410924]
[1734777600682,0.00539439,98210.0,98209.0,0.050924]
[1734777601081,0.00539439,98210.0,98209.0,1.410924]
[1734777601379,0.00539439,98210.0,98209.0,1.36]
[1734777601592,0.050932,98195.0,98193.0,0.18379386]
[1734777601885,0.050932,98195.0,98193.0,0.18226633]
[1734777601886,0.3608,98194.0,98193.0,0.18226633]
[1734777602275,0.00139439,98194.0,98193.0,0.18226633]
[1734777602480,0.004,98210.0,98209.0,0.050924]
[1734777602880,0.003,98210.0,98209.0,0.050924]
[1734777603070,0.003,98210.0,98209.0,1.410924]
[1734777603272,0.12096564,98211.0,98209.0,1.410924]
[1734777603684,0.001,98210.0,98209.0,1.410924]
[1734777603875,0.001,98210.0,98209.0,1.411924]
[1734777604082,0.009,98210.0,98209.0,1.411924]
[1734777604584,0.001,98210.0,98209.0,1.410924]
[1734777605571,0.004,98211.0,98209.0,1.410924]
[1734777605774,0.005,98211.0,98209.0,1.410924]
[1734777606177,0.003,98210.0,98209.0,1.410924]
[1734777606573,0.004,98210.0,98209.0,1.410924]
[1734777606774,0.001,98210.0,98209.0,1.410924]
[1734777607490,0.15123279,98239.0,98230.0,0.050913]
[1734777607685,0.12096564,98235.0,98232.0,0.050912]
[1734777607890,0.12096564,98235.0,98234.0,0.050911]
[1734777608999,0.00152752,98247.0,98234.0,0.050911]
[1734777609295,0.00152752,98247.0,98235.0,0.05091]
[1734777609585,0.050906,98245.0,98235.0,0.05091]
[1734777610987,0.054906,98245.0,98235.0,0.05091]
[1734777612697,0.053906,98245.0,98235.0,0.05091]
[1734777612998,0.001,98245.0,98235.0,0.05091]
[1734777613295,0.050908,98241.0,98235.0,0.05091]
[1734777614682,0.051908,98241.0,98235.0,0.05091]
[1734777615595,0.001,98241.0,98233.0,8e-05]
[1734777615786,0.001,98241.0,98240.0,0.050908]
[1734777615985,0.002,98241.0,98240.0,0.050908]
[1734777616795,0.001,98241.0,98240.0,0.050908]
[1734777617493,0.00152752,98247.0,98240.0,0.050908]
[1734777617695,0.001,98241.0,98240.0,0.050908]
[1734777618394,0.001,98241.0,98234.0,0.050911]
[1734777618596,0.14144422,98244.0,98236.0,0.05091]
[1734777619594,0.14144422,98244.0,98230.0,0.36088]
[1734777619789,0.14244422,98244.0,98237.0,0.050909]
[1734777620188,0.001,98241.0,98237.0,0.050909]
[1734777620695,0.09053822,98242.0,98237.0,0.050909]
[1734777620994,0.09053822,98242.0,98241.0,0.050907]
[1734777621594,0.12096564,98243.0,98241.0,0.050907]
[1734777621893,0.001,98242.0,98241.0,0.050907]
[1734777622492,0.002,98242.0,98241.0,0.050907]
[1734777625898,0.09263748,98242.0,98241.0,0.050907]
[1734777627999,0.09263748,98242.0,98241.0,0.411707]
[1734777628589,0.03843748,98242.0,98241.0,0.411707]
[1734777628803,0.03843748,98242.0,98241.0,1.771707]
[1734777629602,0.03843748,98242.0,98241.0,0.411707]
[1734777629796,0.03843748,98242.0,98240.0,0.01528]
[1734777630001,0.03843748,98242.0,98241.0,0.050907]
[1734777630303,0.00152752,98247.0,98241.0,0.23317333]
[1734777630606,0.050907,98242.0,98241.0,0.18226633]
[1734777630795,0.411707,98242.0,98241.0,0.18226633]
[1734777631603,0.412707,98242.0,98241.0,0.18226633]
[1734777631992,0.412707,98242.0,98234.0,0.050911]
[1734777632404,4e-05,98235.0,98234.0,0.050911]
[1734777633810,4e-05,98235.0,98234.0,0.052911]
[1734777636306,0.12096301,98235.0,98234.0,0.053911]
[1734777637610,4e-05,98235.0,98234.0,0.053911]
[1734777638292,4e-05,98235.0,98234.0,0.003]
[1734777638703,0.0768325,98235.0,98234.0,0.003]
[1734777639602,0.08714107,98235.0,98234.0,0.003]
[1734777640395,0.13698729,98235.0,98213.0,0.0334]
[1734777640597,0.3608,98218.0,98213.0,0.0334]
[1734777640797,4e-05,98214.0,98213.0,0.0334]
[1734777642904,0.050962,98214.0,98203.0,0.18276988]
[1734777643206,4e-05,98213.0,98203.0,0.18276988]
[1734777643399,0.050924,98210.0,98203.0,0.18276988]
[1734777643600,0.050924,98210.0,98196.0,0.036]
[1734777643601,0.411724,98210.0,98200.0,0.18276988]
[1734777643905,0.411764,98210.0,98200.0,0.18276988]
[1734777644707,0.414764,98210.0,98200.0,0.18276988]
[1734777645006,0.414764,98210.0,98196.0,0.036]
[1734777646210,0.415764,98210.0,98196.0,0.036]
[1734777647910,0.36484,98210.0,98207.0,0.050925]
[1734777648310,0.36484,98210.0,98209.0,0.03609486]
[1734777649014,0.00404,98210.0,98209.0,0.08701886]
[1734777649214,0.00404,98210.0,98209.0,0.03609486]
[1734777650923,0.36484,98210.0,98209.0,0.03609486]
[1734777651218,0.050934,98190.0,98189.0,0.18276988]
[1734777651515,4e-05,98190.0,98179.0,0.0355]
[1734777651714,0.050974,98190.0,98189.0,0.00700838]
[1734777652405,0.051934,98190.0,98189.0,0.00700838]
[1734777653819,0.054934,98190.0,98189.0,0.00700838]
[1734777662518,0.37124072,98209.0,98196.0,0.050931]
[1734777662820,0.38212374,98209.0,98200.0,0.00700838]
[1734777663019,0.38212374,98209.0,98201.0,0.037]
[1734777663216,0.37168302,98209.0,98201.0,0.037]
[1734777663423,0.36132001,98209.0,98201.0,0.037]
[1734777663607,0.3608,98209.0,98205.0,0.00700838]
[1734777664520,0.1206873,98212.0,98208.0,0.3608]
[1734777664710,0.1206873,98212.0,98211.0,0.050923]
[1734777664911,0.3608,98219.0,98214.0,0.050921]
[1734777665319,0.3608,98219.0,98217.0,0.05092]
[1734777665524,0.1206873,98221.0,98220.0,0.050918]
[1734777665821,0.15117879,98228.0,98227.0,0.050915]
[1734777666005,0.15117879,98228.0,98227.0,0.411715]
[1734777666720,0.15117879,98244.0,98240.0,0.050908]
[1734777667219,0.15117879,98244.0,98242.0,0.050907]
[1734777667821,0.15117879,98244.0,98243.0,0.00700838]
[1734777668319,0.001,98244.0,98243.0,0.00700838]
[1734777668722,0.002,98244.0,98243.0,0.00700838]
[1734777669228,0.002,98244.0,98227.0,0.00112]
[1734777669529,0.050914,98228.0,98224.0,0.18235475]
[1734777670819,0.050914,98228.0,98226.0,0.00508]
[1734777672227,0.0609288,98228.0,98226.0,0.00508]
[1734777672815,0.0609288,98228.0,98226.0,8e-05]
[1734777673017,0.0639288,98228.0,98226.0,8e-05]
[1734777673218,0.0639288,98228.0,98226.0,0.00308]
[1734777673422,0.01056727,98227.0,98226.0,0.00308]
[1734777673820,0.01056727,98227.0,98200.0,0.10115049]
[1734777673821,0.050926,98206.0,98200.0,0.0015273]
[1734777674327,0.050927,98205.0,98200.0,0.0015273]
[1734777674522,0.3608,98210.0,98200.0,0.0015273]
[1734777674718,4e-05,98201.0,98200.0,0.0015273]
[1734777675326,0.050968,98201.0,98200.0,0.0015273]
[1734777676025,4e-05,98201.0,98187.0,0.18243475]
[1734777676233,0.411735,98188.0,98187.0,0.18243475]
[1734777676418,0.411775,98188.0,98187.0,0.18243475]
[1734777677431,0.411775,98188.0,98187.0,8e-05]
[1734777678629,0.412775,98188.0,98187.0,8e-05]
[1734777678833,0.414775,98188.0,98187.0,8e-05]
[1734777692237,0.00304,98188.0,98187.0,8e-05]
[1734777692545,0.3608,98209.0,98187.0,0.30008]
[1734777692728,0.3608,98209.0,98195.0,0.3608]
[1734777692934,0.3608,98209.0,98204.0,0.050926]
[1734777693940,0.002,98207.0,98204.0,0.050926]
[1734777694536,0.052925,98207.0,98204.0,0.002]
[1734777695343,0.050925,98207.0,98204.0,0.008]
[1734777697135,0.050926,98205.0,98204.0,0.008]
[1734777698338,0.050926,98205.0,98204.0,0.002]
[1734777698538,0.051926,98205.0,98204.0,0.008]
[1734777699444,0.06260246,98205.0,98204.0,0.008]
[1734777700252,0.051926,98205.0,98204.0,0.008]
[1734777700440,0.06260246,98205.0,98204.0,0.008]
[1734777700746,0.051926,98205.0,98204.0,0.008]
[1734777701242,0.09590246,98205.0,98204.0,0.008]
[1734777701441,0.06260246,98205.0,98204.0,0.008]
[1734777701642,0.06260246,98205.0,98204.0,0.006]
[1734777701843,0.06260246,98205.0,98204.0,0.009]
[1734777702039,0.0626087,98205.0,98204.0,0.009]
[1734777702243,0.051926,98205.0,98204.0,0.009]
[1734777702440,0.001,98205.0,98204.0,0.009]
[1734777703650,0.04489104,98205.0,98204.0,0.009]
[1734777703835,0.050927,98204.0,98190.0,8e-05]
[1734777704040,0.050933,98191.0,98190.0,8e-05]
[1734777705142,0.06162404,98191.0,98190.0,8e-05]
[1734777705344,0.06165403,98191.0,98190.0,8e-05]
[1734777705549,0.06165403,98191.0,98190.0,0.00108]
[1734777705752,0.06165403,98191.0,98190.0,0.00208]
[1734777706248,0.07560146,98191.0,98190.0,0.00108]
[1734777706451,0.050939,98181.0,98180.0,0.18246986]
[1734777706750,0.42250003,98181.0,98180.0,0.18246986]
[1734777706956,0.42250003,98181.0,98180.0,0.00011511]
[1734777707539,0.411779,98181.0,98180.0,0.00011511]
[1734777707747,0.42263062,98181.0,98180.0,0.00011511]
[1734777708151,0.42563062,98181.0,98180.0,0.00011511]
[1734777708451,0.57680941,98181.0,98180.0,0.00011511]
[1734777708655,0.52587041,98181.0,98162.0,0.050948]
[1734777708842,0.01085162,98180.0,98162.0,0.050948]
[1734777709049,4e-05,98163.0,98162.0,0.050948]
[1734777709248,4e-05,98163.0,98162.0,0.411748]
[1734777709646,0.00011896,98163.0,98162.0,0.411748]
[1734777710046,0.00011896,98163.0,98162.0,0.414748]
[1734777710745,0.00011896,98163.0,98162.0,0.415748]
[1734777711457,0.00011896,98163.0,98162.0,0.414748]
[1734777711645,0.00011896,98163.0,98162.0,0.415748]
[1734777711845,0.00011896,98163.0,98162.0,1.775748]
[1734777712246,0.00011896,98163.0,98162.0,1.772748]
[1734777712454,0.00011896,98163.0,98162.0,1.775748]
[1734777715453,0.00011896,98163.0,98162.0,1.7248]
[1734777717850,0.00011896,98163.0,98162.0,1.775748]
[1734777719650,0.01014151,98188.0,98175.0,0.050941]
[1734777719863,0.41225401,98191.0,98175.0,0.050941]
[1734777720162,0.411734,98191.0,98175.0,0.050941]
[1734777720365,0.42173417,98191.0,98174.0,0.3608]
[1734777720658,0.42173417,98191.0,98181.0,0.050938]
[1734777721258,0.3608,98191.0,98180.0,0.09962319]
[1734777721766,0.3608,98191.0,98183.0,0.050937]
[1734777722964,0.3608,98191.0,98184.0,0.050937]
[1734777723170,0.3608,98191.0,98180.0,0.09962319]
[1734777723462,0.3608,98191.0,98189.0,0.050934]
[1734777723665,0.3618,98191.0,98189.0,0.050934]
[1734777723961,0.15117879,98202.0,98201.0,0.050928]
[1734777724153,0.15117879,98208.0,98203.0,0.050927]
[1734777724650,0.15117879,98208.0,98205.0,0.050926]
[1734777725865,0.0684,98215.0,98205.0,0.050926]
[1734777726165,0.01066373,98214.0,98205.0,0.050926]
[1734777726355,0.01066373,98213.0,98208.0,0.050924]
[1734777726555,0.01066373,98213.0,98203.0,0.004]
[1734777726556,0.01066251,98216.0,98213.0,0.050922]
[1734777726756,0.00088398,98222.0,98215.0,0.050921]
[1734777727059,0.01066442,98217.0,98208.0,0.15054719]
[1734777727259,0.01066442,98216.0,98210.0,0.050923]
[1734777727466,0.01066442,98215.0,98212.0,0.050922]
[1734777727654,0.01066442,98214.0,98212.0,0.050922]
[1734777727854,0.01066442,98213.0,98212.0,0.050922]
[1734777728062,0.00130697,98213.0,98212.0,0.050922]
[1734777728562,0.00264105,98213.0,98212.0,0.050922]
[1734777729457,0.00264105,98213.0,98212.0,1.410922]
[1734777729870,0.0033691,98213.0,98212.0,1.426202]
[1734777730060,0.0033691,98213.0,98212.0,1.427202]
[1734777730369,0.0033691,98213.0,98212.0,1.429202]
[1734777730861,0.0033691,98213.0,98212.0,1.431202]
[1734777731257,0.0083691,98213.0,98212.0,1.427202]
[1734777731665,0.0083691,98213.0,98212.0,0.067202]
[1734777732471,0.0113691,98213.0,98212.0,0.066202]
[1734777732656,0.0113691,98213.0,98212.0,0.100602]
[1734777733069,0.0113691,98213.0,98212.0,0.050922]
[1734777734368,0.0063691,98213.0,98212.0,0.050922]
[1734777734667,0.0063691,98213.0,98212.0,0.051922]
[1734777734668,0.0113691,98213.0,98212.0,0.051922]
[1734777735163,0.0123691,98213.0,98212.0,0.051922]
[1734777737879,0.01066217,98249.0,98235.0,0.050911]
[1734777738066,0.0356,98245.0,98235.0,0.411711]
[1734777738971,0.0376,98236.0,98235.0,0.050911]
[1734777740172,0.0376,98236.0,98230.0,0.3608]
[1734777740379,0.050911,98234.0,98228.0,0.00112]
[1734777740566,4e-05,98231.0,98227.0,0.050914]
[1734777740974,4e-05,98228.0,98227.0,0.050914]
[1734777741876,4e-05,98228.0,98227.0,0.053914]
[1734777742179,0.050954,98228.0,98227.0,0.003]
[1734777742568,0.050954,98228.0,98219.0,0.3608]
[1734777742569,0.050917,98223.0,98219.0,0.3608]
[1734777742876,4e-05,98220.0,98216.0,8e-05]
[1734777743077,0.05092,98218.0,98216.0,8e-05]
[1734777743278,4e-05,98217.0,98216.0,8e-05]
[1734777743973,4e-05,98217.0,98216.0,0.00308]
[1734777744876,0.00104,98217.0,98216.0,0.01208]
[1734777745070,0.36184,98217.0,98216.0,0.01208]
[1734777749367,0.45244702,98217.0,98216.0,0.01208]
[1734777749570,0.46311043,98217.0,98216.0,0.01208]
[1734777750875,0.37250341,98217.0,98216.0,0.01208]
[1734777751278,0.37254587,98217.0,98216.0,0.01208]
[1734777754378,0.37255642,98217.0,98216.0,0.01208]
[1734777757080,0.37263868,98217.0,98216.0,0.01208]
[1734777757384,0.01183868,98217.0,98216.0,0.01208]
[1734777757682,0.00104,98217.0,98216.0,0.01208]
[1734777757888,0.01184265,98217.0,98216.0,0.01208]
[1734777759974,0.0118844,98217.0,98216.0,0.01208]
[1734777761975,0.0118844,98217.0,98216.0,1.37208]
[1734777764188,0.0118844,98217.0,98216.0,0.01208]
[1734777765588,0.02923544,98217.0,98216.0,0.01208]
[1734777765775,0.00104,98217.0,98216.0,0.01208]
[1734777765980,0.01186765,98217.0,98216.0,0.01208]
[1734777767681,0.00104,98217.0,98216.0,0.04668]
[1734777768184,0.00104,98217.0,98216.0,1.40668]
[1734777769893,0.00104,98217.0,98216.0,1.42196]
[1734777772182,0.00104,98217.0,98216.0,1.40668]
[1734777772489,0.00104,98217.0,98216.0,0.05690392]
[1734777773695,0.09190854,98217.0,98216.0,0.04668]
[1734777774091,0.10274949,98217.0,98216.0,0.04668]
[1734777774697,0.10276573,98217.0,98216.0,0.04668]
[1734777775196,0.06281719,98217.0,98216.0,0.01208]
[1734777775382,0.08018771,98217.0,98216.0,0.01208]
[1734777776392,0.09021635,98217.0,98216.0,0.01208]
[1734777776594,0.09034515,98217.0,98216.0,0.01208]
[1734777780594,0.09037815,98217.0,98216.0,0.01208]
[1734777782893,0.09030335,98217.0,98216.0,0.01208]
[1734777783995,0.00104,98217.0,98216.0,0.37288]
[1734777784297,1e-06,98217.0,98216.0,0.48118]
[1734777784488,0.01088217,98237.0,98236.0,0.05091]
[1734777784686,0.3608,98250.0,98236.0,0.3608]